bitfinex/quotes_SOLUSD_20240925
["timestamp","ask_amount","ask_price","bid_price","bid_amount"]
[1727282808685,6.5851,151.86,151.8,6.5875]
[1727282811200,1.6466122,151.85,151.8,6.5875]
[1727282811397,6.586,151.84,151.79,23.0571]
[1727282811709,1.6467892,151.83,151.79,16.4692]
[1727282812004,6.586,151.84,151.79,16.4692]
[1727282813773,6.586,151.84,151.79,23.0572]
[1727282813973,6.5855,151.85,151.8,6.5875]
[1727282814201,30.361984,151.86,151.81,6.587]
[1727282815697,23.776884,151.9,151.81,16.4675]
[1727282815880,23.776884,151.9,151.83,16.4652]
[1727282816084,6.5844,151.88,151.83,23.0514]
[1727282816996,23.776884,151.9,151.83,16.4652]
[1727282817299,6.5846,151.87,151.83,16.4652]
[1727282817979,6.5846,151.87,151.83,23.0515]
[1727282819888,6.5846,151.87,151.83,16.4652]
[1727282821205,6.5846,151.87,151.8,15.6521]
[1727282821206,1.64635564,151.86,151.8,15.6521]
[1727282821509,6.5861,151.84,151.8,15.6521]
[1727282821718,1.64673264,151.83,151.8,15.6521]
[1727282822700,6.5861,151.84,151.8,15.6521]
[1727282822902,23.776884,151.87,151.8,15.6521]
[1727282823090,6.5855,151.85,151.8,22.2394]
[1727282823286,23.776884,151.9,151.81,16.4676]
[1727282823499,6.5836,151.9,151.84,6.5854]
[1727282823702,6.5838,151.89,151.8,34.40338238]
[1727282823906,6.5838,151.89,151.85,16.4633]
[1727282824092,15.8075,151.91,151.8,34.40338238]
[1727282824407,1.64635465,151.9,151.82,23.0527]
[1727282824601,6.5846,151.87,151.82,23.0527]
[1727282826126,6.5846,151.87,151.82,16.4661]
[1727282826413,23.776884,151.9,151.82,16.4661]
[1727282826910,6.5841,151.88,151.84,6.5858]
[1727282827105,1.64635155,151.87,151.83,6.5862]
[1727282827404,6.5851,151.86,151.82,16.4661]
[1727282827611,6.5855,151.85,151.81,6.5871]
[1727282828017,1.64668966,151.84,151.79,22.5017]
[1727282828197,1.64668966,151.84,151.78,0.2465115]
[1727282828391,6.5879,151.8,151.78,0.2465115]
[1727282828587,1.6471637,151.79,151.78,0.2465115]
[1727282828997,25.4240477,151.79,151.78,0.2465115]
[1727282829291,6.5872,151.81,151.78,0.2465115]
[1727282829692,32.0119628,151.8,151.78,0.2465115]
[1727282830018,30.364784,151.8,151.78,0.2465115]
[1727282830809,6.5872,151.81,151.78,0.2465115]
[1727282831314,33.91950478,151.84,151.78,0.2465115]
[1727282831315,30.364784,151.8,151.78,0.2465115]
[1727282834096,6.5879,151.8,151.78,0.2465115]
[1727282834828,30.364884,151.79,151.78,0.2465115]
[1727282836925,127.62065797,151.79,151.78,0.2465115]
[1727282837214,36.372684,151.79,151.78,0.2465115]
[1727282838634,30.364884,151.79,151.78,0.2465115]
[1727282839013,32.01260772,151.79,151.78,0.2465115]
[1727282841530,30.364884,151.79,151.78,0.2465115]
[1727282841727,6.5877,151.8,151.78,0.2465115]
[1727282842212,1.64734558,151.79,151.78,0.2465115]
[1727282842618,6.5877,151.8,151.78,0.2465115]
[1727282843001,23.776884,151.82,151.78,0.2465115]
[1727282843205,23.776884,151.8,151.78,0.2465115]
[1727282843413,1.64734591,151.79,151.78,0.2465115]
[1727282843812,8.23534591,151.79,151.78,0.2465115]
[1727282844737,1.64734591,151.79,151.78,0.2465115]
[1727282846018,8.23534591,151.79,151.78,0.2465115]
[1727282846545,6.588,151.79,151.78,0.2465115]
[1727282847528,6.587,151.82,151.78,0.2465115]
[1727282847821,1.64718352,151.81,151.78,0.2465115]
[1727282848131,6.5877,151.8,151.78,0.2465115]
[1727282850313,1.64730152,151.79,151.78,0.2465115]
[1727282850816,6.5877,151.8,151.78,0.2465115]
[1727282851213,23.776884,151.83,151.78,0.2465115]
[1727282851537,6.5869,151.82,151.78,6.8348115]
[1727282851925,6.5869,151.82,151.78,0.2465115]
[1727282852110,8.23434014,151.81,151.78,0.2465115]
[1727282853011,1.64720596,151.8,151.78,0.2465115]
[1727282853437,8.23480596,151.8,151.78,0.2465115]
[1727282853734,1.64720775,151.79,151.78,0.2465115]
[1727282853936,1.64719775,151.79,151.78,0.2465115]
[1727282855030,6.588,151.79,151.78,0.2465115]
[1727282855238,6.5877,151.8,151.78,0.2465115]
[1727282855914,23.776884,151.82,151.78,0.2465115]
[1727282855915,6.5874,151.81,151.78,0.2465115]
[1727282856532,1.647168,151.8,151.78,0.2465115]
[1727282857343,23.776884,151.82,151.78,0.2465115]
[1727282857639,6.5872,151.81,151.78,0.2465115]
[1727282859629,23.776884,151.82,151.78,0.2465115]
[1727282859827,6.5876,151.8,151.78,0.2465115]
[1727282860341,6.5873,151.81,151.78,0.2465115]
[1727282860842,1.64718178,151.8,151.78,0.2465115]
[1727282861348,6.5879,151.8,151.78,0.2465115]
[1727282862442,6.5868,151.82,151.78,0.2465115]
[1727282862637,8.2344894,151.81,151.78,0.2465115]
[1727282862819,6.5874,151.81,151.78,0.2465115]
[1727282863227,6.5876,151.8,151.78,0.2465115]
[1727282864552,6.5872,151.81,151.78,0.2465115]
[1727282865443,1.64724754,151.82,151.78,0.2465115]
[1727282865645,6.5871,151.82,151.78,0.2465115]
[1727282866246,1.64710266,151.81,151.78,0.2465115]
[1727282866544,16.4655,151.84,151.78,0.2465115]
[1727282866748,6.5868,151.82,151.78,6.8349115]
[1727282867126,1.6470653,151.81,151.78,6.8349115]
[1727282867441,1.6470653,151.81,151.78,0.2465115]
[1727282867647,8.2344653,151.81,151.78,0.2465115]
[1727282868032,23.776884,151.8,151.78,0.2465115]
[1727282868232,23.776884,151.83,151.78,0.2465115]
[1727282869129,6.5876,151.8,151.78,0.2465115]
[1727282871851,6.588,151.79,151.78,0.2465115]
[1727282872152,6.5877,151.8,151.78,0.2465115]
[1727282872533,1.64726321,151.79,151.78,0.2465115]
[1727282873347,6.5876,151.8,151.78,0.2465115]
[1727282874951,23.776884,151.83,151.78,0.2465115]
[1727282875160,6.586,151.84,151.8,6.5876]
[1727282875455,7.3324247,151.89,151.81,12.02351354]
[1727282875659,6.5842,151.88,151.84,6.5858]
[1727282875857,6.5842,151.88,151.85,12.02351354]
[1727282876166,6.5841,151.89,151.85,12.02351354]
[1727282876544,6.5841,151.89,151.84,23.0493]
[1727282876545,6.5841,151.89,151.84,41.81326942]
[1727282877434,23.776884,151.88,151.84,41.81326942]
[1727282878136,6.5841,151.89,151.84,41.81326942]
[1727282878669,6.5841,151.89,151.85,6.5854]
[1727282878833,6.5841,151.89,151.84,41.81326942]
[1727282879455,6.5842,151.88,151.84,41.81326942]
[1727282880258,6.585,151.86,151.84,18.76396942]
[1727282880560,6.5842,151.88,151.84,18.76396942]
[1727282881642,8.23057614,151.88,151.84,25.34966942]
[1727282881838,8.23057614,151.88,151.84,6.5857]
[1727282882040,6.5851,151.86,151.83,18.76396942]
[1727282882365,1.64651027,151.85,151.83,18.76396942]
[1727282883039,1.64651027,151.85,151.82,6.5864]
[1727282883233,23.776884,151.9,151.82,6.5864]
[1727282883439,6.5846,151.87,151.83,6.5863]
[1727282885039,6.5853,151.86,151.82,6.5866]
[1727282885937,6.5853,151.86,151.81,57.86346942]
[1727282886145,6.5853,151.86,151.81,64.45056942]
[1727282887470,6.5846,151.87,151.82,6.5864]
[1727282887645,1.64655961,151.86,151.82,6.5864]
[1727282887845,8.23165961,151.86,151.82,6.5864]
[1727282888048,1.64660953,151.85,151.82,6.5864]
[1727282889545,6.5847,151.87,151.82,6.5864]
[1727282890047,1.64656379,151.86,151.82,6.5864]
[1727282892644,8.23186379,151.86,151.81,64.45046942]
[1727282892967,1.64670781,151.85,151.81,64.45046942]
[1727282893265,1.64670781,151.85,151.81,57.86346942]
[1727282893446,6.5853,151.86,151.81,64.45016942]
[1727282894348,1.64670241,151.85,151.81,64.45016942]
[1727282894765,6.5853,151.86,151.82,6.5864]
[1727282895070,1.6465811,151.85,151.81,57.86346942]
[1727282895377,1.6465811,151.85,151.81,45.6865]
[1727282895972,6.5853,151.86,151.82,6.5867]
[1727282897246,6.5864,151.83,151.81,16.3258]
[1727282897553,1.64685029,151.88,151.78,16.7172115]
[1727282897745,1.64685029,151.88,151.78,0.2465115]
[1727282897746,23.776884,151.82,151.78,0.2465115]
[1727282897963,1.64721477,151.81,151.78,0.2465115]
[1727282898346,6.588,151.79,151.78,0.2465115]
[1727282898652,32.01242344,151.79,151.78,0.2465115]
[1727282900765,30.364884,151.79,151.78,0.2465115]
[1727282901877,119.984884,151.79,151.78,0.2465115]
[1727282902054,80.364884,151.79,151.78,0.2465115]
[1727282902247,30.364884,151.79,151.78,0.2465115]
[1727282903176,37.20792577,151.79,151.78,0.2465115]
[1727282904584,87.20792577,151.79,151.78,0.2465115]
[1727282905068,88.85597174,151.79,151.78,0.2465115]
[1727282905274,98.24520963,151.79,151.78,0.2465115]
[1727282907469,46.59716366,151.79,151.78,0.2465115]
[1727282907676,48.24518452,151.79,151.78,0.2465115]
[1727282908174,98.24518452,151.79,151.78,0.2465115]
[1727282908684,46.59716366,151.79,151.78,0.2465115]
[1727282909064,48.24523307,151.79,151.78,0.2465115]
[1727282909660,50.88752107,151.79,151.78,0.2465115]
[1727282909962,48.24523307,151.79,151.78,0.2465115]
[1727282910957,98.24523307,151.79,151.78,0.2465115]
[1727282911164,98.24523307,151.79,151.78,1.15e-05]
[1727282911370,98.24523307,151.79,151.73,0.2465115]
[1727282911371,30.366584,151.75,151.73,0.2465115]
[1727282911549,32.01480932,151.75,151.73,0.2465115]
[1727282913361,32.01480932,151.75,151.74,0.0001]
[1727282913568,87.18411685,151.75,151.74,0.0001]
[1727282913774,88.83257337,151.75,151.74,0.0001]
[1727282914280,37.18411685,151.75,151.74,0.0001]
[1727282914651,88.83259762,151.75,151.74,0.0001]
[1727282915773,98.22183551,151.75,151.74,0.0001]
[1727282917257,48.22183551,151.75,151.74,0.0001]
[1727282917491,37.18411685,151.75,151.74,0.0001]
[1727282917672,88.83258445,151.75,151.74,0.0001]
[1727282919560,38.83258445,151.75,151.74,0.0001]
[1727282919879,15.05576373,151.75,151.74,0.0001]
[1727282920256,8.23823088,151.75,151.74,0.0001]
[1727282920483,6.5897,151.75,151.74,0.0001]
[1727282921084,32.0149381,151.75,151.74,0.0001]
[1727282921296,41.40417599,151.75,151.74,0.0001]
[1727282921965,81.02417599,151.75,151.74,0.0001]
[1727282922160,73.776884,151.74,151.73,1.15e-05]
[1727282922362,82.01567834,151.74,151.73,1.15e-05]
[1727282922580,80.367084,151.74,151.73,1.15e-05]
[1727282922767,82.0156629,151.74,151.73,1.15e-05]
[1727282923165,80.367084,151.74,151.73,1.15e-05]
[1727282924191,80.367084,151.74,151.68,0.3188413]
[1727282924192,30.369184,151.69,151.68,0.3188413]
[1727282933671,6.5923,151.69,151.68,0.3188413]
[1727282934193,24.93433835,151.72,151.68,0.3188413]
[1727282934381,6.5923,151.69,151.68,0.3188413]
[1727282935189,30.369184,151.69,151.68,0.3188413]
[1727282936870,32.01781482,151.69,151.68,0.3188413]
[1727282937088,30.369184,151.69,151.68,0.3188413]
[1727282937496,32.01803784,151.69,151.68,0.3188413]
[1727282939096,30.369184,151.69,151.68,0.3188413]
[1727282940995,32.01778267,151.69,151.68,0.3188413]
[1727282941370,30.369184,151.69,151.68,0.3188413]
[1727282941775,32.01766791,151.69,151.68,0.3188413]
[1727282942493,30.369184,151.69,151.68,0.3188413]
[1727282943295,32.01764815,151.69,151.68,0.3188413]
[1727282944290,30.369184,151.69,151.68,0.3188413]
[1727282945801,32.0179556,151.69,151.68,0.3188413]
[1727282947585,30.369184,151.69,151.68,0.3188413]
[1727282953809,80.369184,151.69,151.68,4.13e-05]
[1727282954109,30.369184,151.69,151.68,4.13e-05]
[1727282954490,32.01808752,151.69,151.68,4.13e-05]
[1727282955386,30.369184,151.69,151.68,4.13e-05]
[1727282955589,37.18239767,151.69,151.68,4.13e-05]
[1727282955892,88.83135679,151.69,151.68,4.13e-05]
[1727282956911,88.83142433,151.69,151.68,4.13e-05]
[1727282957215,50.0,151.66,151.64,0.2465115]
[1727282957395,8.24346315,151.65,151.64,0.2465115]
[1727282957600,6.5941,151.65,151.64,0.2465115]
[1727282958192,8.24341198,151.65,151.64,0.2465115]
[1727282959212,32.02029598,151.65,151.64,0.2465115]
[1727282961516,30.370984,151.65,151.64,0.2465115]
[1727282961904,6.5941,151.65,151.64,0.2465115]
[1727282962106,6.5928,151.68,151.64,40.89849521]
[1727282962807,6.5933,151.67,151.64,34.30429521]
[1727282963002,6.5941,151.65,151.64,22.2569115]
[1727282963915,30.370984,151.65,151.64,22.2569115]
[1727282964300,16.4813,151.69,151.64,22.2569115]
[1727282964509,39.72791023,151.72,151.64,22.2569115]
[1727282964692,6.5922,151.7,151.67,12.04738371]
[1727282965390,16.4783,151.72,151.65,12.04738371]
[1727282965597,96.39006109,151.75,151.65,12.04738371]
[1727282965598,1.64855146,151.74,151.65,12.04738371]
[1727282965801,6.5918,151.71,151.67,12.04738371]
[1727282966112,6.5922,151.7,151.65,35.12608371]
[1727282966687,6.5925,151.69,151.65,35.12608371]
[1727282967502,23.776884,151.74,151.65,12.04738371]
[1727282967721,23.776884,151.72,151.65,12.04738371]
[1727282967893,6.5924,151.69,151.65,12.04738371]
[1727282968094,6.5924,151.69,151.65,18.64138371]
[1727282970316,1.64834806,151.68,151.65,18.64138371]
[1727282970812,6.5924,151.69,151.65,12.04738371]
[1727282970996,1.64835866,151.68,151.65,12.04738371]
[1727282971398,8.24125866,151.68,151.65,12.04738371]
[1727282972025,1.64845553,151.67,151.65,12.04738371]
[1727282972223,1.64845553,151.67,151.64,28.8513115]
[1727282972518,6.5929,151.68,151.65,12.04738371]
[1727282973015,8.24178545,151.67,151.64,22.2569115]
[1727282973214,1.64856408,151.66,151.64,22.2569115]
[1727282973421,6.5933,151.67,151.64,22.2569115]
[1727282973997,1.64856095,151.66,151.64,22.2569115]
[1727282975007,6.5933,151.67,151.64,22.2569115]
[1727282975698,1.64858905,151.66,151.64,22.2569115]
[1727282975898,6.5938,151.66,151.64,22.2569115]
[1727282978010,1.64868392,151.7,151.64,22.2569115]
[1727282978209,6.5924,151.69,151.66,12.04738371]
[1727282978621,6.592,151.7,151.66,18.64088371]
[1727282978799,6.76644072,151.74,151.66,12.04738371]
[1727282979005,39.62,151.76,151.67,16.4825]
[1727282979311,6.592,151.7,151.67,16.4825]
[1727282980098,6.5916,151.71,151.68,12.04738371]
[1727282983509,6.5919,151.7,151.68,12.04738371]
[1727282986304,6.591,151.73,151.69,6.5922]
[1727282986640,6.591,151.73,151.7,33.82088371]
[1727282987006,16.4749,151.75,151.7,33.82088371]
[1727282987215,6.5912,151.72,151.7,21.7735]
[1727282988424,6.76571079,151.78,151.7,21.7735]
[1727282988425,25.42482349,151.77,151.7,21.7735]
[1727282988622,6.5909,151.73,151.7,21.7735]
[1727282989019,1.64793918,151.76,151.7,21.7735]
[1727282989205,6.5915,151.71,151.7,21.7735]
[1727282989407,30.368384,151.71,151.7,21.7735]
[1727282990937,23.776884,151.72,151.66,22.0067]
[1727282991110,6.5925,151.69,151.66,22.0067]
[1727282991314,1.64829344,151.68,151.66,22.0067]
[1727282991516,6.5932,151.67,151.66,22.0067]
[1727282992324,8.24119344,151.68,151.66,22.0067]
[1727282992624,6.5926,151.69,151.66,22.0067]
[1727282993831,1.64833438,151.68,151.66,22.0067]
[1727282994033,1.64844334,151.7,151.64,0.2465115]
[1727282994215,6.5939,151.66,151.64,0.2465115]
[1727282995718,23.776884,151.7,151.64,0.2465115]
[1727282995920,23.776884,151.7,151.64,12.29389521]
[1727282996120,6.5928,151.68,151.64,18.88839521]
[1727282996843,6.5924,151.69,151.65,6.5937]
[1727282997136,6.5928,151.68,151.64,35.37429521]
[1727282997539,6.5927,151.69,151.64,35.37429521]
[1727282998128,1.64831509,151.69,151.64,35.37429521]
[1727282998330,6.5933,151.67,151.64,28.77989521]
[1727282998736,6.5933,151.67,151.64,12.29389521]
[1727282998923,6.5927,151.69,151.64,12.29389521]
[1727282999223,6.5918,151.71,151.66,18.64068371]
[1727282999624,6.5918,151.71,151.67,6.5932]
[1727282999825,6.5908,151.73,151.68,41.18908371]
[1727283000130,6.76808364,151.74,151.68,34.59668371]
[1727283000131,6.5915,151.71,151.68,34.59668371]
[1727283000733,6.76808364,151.74,151.7,12.04738371]
[1727283000939,1.12724234,151.77,151.7,12.04738371]
[1727283001141,16.4719,151.78,151.7,12.04738371]
[1727283001928,7.01497089,151.8,151.74,12.04738371]
[1727283002137,0.2465115,151.8,151.74,33.77598371]
[1727283002334,1.89386107,151.8,151.74,33.77598371]
[1727283002535,6.5882,151.79,151.76,12.04738371]
[1727283003244,0.2465115,151.8,151.78,12.04738371]
[1727283003542,0.2465115,151.8,151.76,18.63658371]
[1727283003543,6.8341115,151.8,151.76,18.63658371]
[1727283004124,0.2465115,151.8,151.76,18.63658371]
[1727283004324,0.2465115,151.8,151.77,6.5888]
[1727283005044,0.2465115,151.8,151.75,35.25907125]
[1727283005240,0.2465115,151.8,151.76,6.5892]
[1727283005443,6.8342115,151.8,151.76,6.5892]
[1727283006648,0.2465115,151.8,151.77,35.25687125]
[1727283006945,0.2465115,151.8,151.79,31.80997125]
[1727283009334,0.2465115,151.85,151.83,6.5861]
[1727283009731,0.2465115,151.85,151.82,18.78527125]
[1727283009929,0.2465115,151.85,151.83,6.5862]
[1727283010133,0.2465115,151.85,151.84,15.6956]
[1727283010632,0.2465115,151.85,151.79,6.4367]
[1727283010838,6.8320115,151.85,151.8,15.6956]
[1727283011145,0.2465115,151.85,151.82,6.5866]
[1727283011350,6.5858,151.84,151.8,38.7508]
[1727283011543,0.2465115,151.85,151.8,38.7508]
[1727283011726,0.2465115,151.85,151.81,6.5871]
[1727283012347,6.8320115,151.85,151.81,6.5871]
[1727283012540,0.2465115,151.85,151.82,6.5865]
[1727283015763,0.2465115,151.85,151.8,32.1636]
[1727283015933,0.2465115,151.85,151.82,6.5866]
[1727283016438,0.2465115,151.85,151.82,16.4661]
[1727283016645,0.2465115,151.85,151.83,6.5862]
[1727283017439,0.2465115,151.85,151.82,16.4661]
[1727283017639,0.2465115,151.85,151.84,6.5858]
[1727283018954,0.2465115,151.85,151.84,46.90727125]
[1727283019751,0.426172,151.9,151.84,46.90727125]
[1727283019752,0.426172,151.9,151.88,6.5839]
[1727283021363,0.426172,151.9,151.87,23.0454]
[1727283021661,7.009472,151.9,151.87,16.461]
[1727283021837,6.584,151.89,151.84,38.0004]
[1727283022240,7.009672,151.9,151.86,6.5849]
[1727283022542,0.426172,151.9,151.86,6.5849]
[1727283022733,7.009472,151.9,151.86,6.5849]
[1727283025346,7.009472,151.9,151.85,6.5851]
[1727283026154,6.5841,151.88,151.84,44.5862]
[1727283026355,0.426172,151.9,151.84,38.0004]
[1727283026541,7.009772,151.9,151.86,6.5847]
[1727283030373,6.5838,151.89,151.84,44.5859]
[1727283030669,6.5838,151.89,151.85,6.5854]
[1727283031242,0.426172,151.9,151.84,38.0004]
[1727283031562,0.426172,151.9,151.88,6.5837]
[1727283032159,0.426172,151.9,151.87,6.5844]
[1727283032940,0.426172,151.9,151.86,16.4616]
[1727283033337,0.426172,151.9,151.87,6.5842]
[1727283035936,0.426172,151.9,151.84,21.5362]
[1727283036141,0.426172,151.9,151.85,16.4631]
[1727283036362,6.5837,151.89,151.85,23.0483]
[1727283037176,7.009472,151.9,151.86,18.59589454]
[1727283037475,0.426172,151.9,151.88,18.59529454]
[1727283037764,0.426172,151.9,151.89,6.5837]
[1727283040154,0.426172,151.9,151.89,28.7684]
[1727283040560,0.426172,151.9,151.89,47.51453006]
[1727283041485,0.2465115,151.94,151.93,6.5819]
[1727283041661,0.2465115,151.94,151.93,25.32803006]
[1727283042476,0.2465115,151.94,151.93,45.32803006]
[1727283045158,0.426172,151.99,151.98,6.5798]
[1727283046359,0.426172,151.99,151.97,35.19643006]
[1727283046560,0.426172,151.99,151.97,6.5801]
[1727283047490,0.426172,151.99,151.98,6.5798]
[1727283050675,0.426172,151.99,151.96,16.4512]
[1727283050980,0.426172,151.99,151.97,6.5801]
[1727283051793,0.426172,151.99,151.98,6.5798]
[1727283053095,0.426172,151.99,151.97,6.5799]
[1727283053998,0.426172,151.99,151.96,16.4512]
[1727283054295,0.426172,151.99,151.98,6.5798]
[1727283059293,0.2465115,152.03,152.02,6.578]
[1727283060586,0.2465115,152.03,152.01,18.74613006]
[1727283060792,0.2465115,152.03,152.01,6.5784]
[1727283061095,6.8241115,152.03,151.99,6.5792]
[1727283061779,0.2465115,152.03,151.99,18.74613006]
[1727283061988,0.2465115,152.03,152.01,18.74613006]
[1727283062306,0.2465115,152.03,152.02,6.578]
[1727283063679,0.2465115,152.03,152.01,16.4459]
[1727283063877,0.2465115,152.03,152.0,6.5788]
[1727283064281,0.2465115,152.03,151.99,18.74613006]
[1727283064700,0.2465115,152.03,152.01,6.5782]
[1727283065285,0.2465115,152.03,152.0,23.0258]
[1727283066101,0.2465115,152.03,152.02,6.578]
[1727283067712,0.2465115,152.03,152.02,22.2999]
[1727283071890,0.2465115,152.03,151.98,16.6313]
[1727283072226,6.5781,152.02,151.98,6.5797]
[1727283072716,0.2465115,152.03,151.94,33.0844]
[1727283072893,6.5793,151.99,151.95,6.581]
[1727283073089,6.579,152.0,151.96,6.5806]
[1727283073510,0.2465115,152.03,151.96,16.4512]
[1727283073712,0.2465115,152.03,151.96,18.74613006]
[1727283073894,6.8242115,152.03,151.99,6.5793]
[1727283074095,0.2465115,152.03,151.98,16.4491]
[1727283074303,6.5782,152.02,151.98,16.4491]
[1727283075309,25.66791627,152.03,151.96,6.5806]
[1727283075508,6.5792,152.0,151.96,6.5806]
[1727283076627,6.5786,152.01,151.97,6.5801]
[1727283076917,6.5786,152.01,151.96,6.5806]
[1727283077121,6.5789,152.0,151.96,6.5806]
[1727283077326,6.5793,151.99,151.95,23.0332]
[1727283077506,6.579,152.0,151.95,23.0332]
[1727283077699,6.579,152.0,151.96,6.5805]
[1727283077900,6.5785,152.01,151.97,6.5802]
[1727283078513,6.5782,152.02,151.98,6.5794]
[1727283078914,6.5789,152.0,151.97,16.4502]
[1727283079638,6.5787,152.01,151.97,23.0303]
[1727283079923,6.5781,152.02,151.98,6.5797]
[1727283080123,6.8241115,152.03,151.99,6.5792]
[1727283081001,0.2465115,152.03,151.97,16.4502]
[1727283081202,6.5781,152.02,151.98,6.5797]
[1727283082225,6.8242115,152.03,151.98,6.5797]
[1727283082420,0.2465115,152.03,151.97,16.4502]
[1727283082827,6.5787,152.01,151.97,23.0303]
[1727283083510,0.2465115,152.03,151.97,16.4502]
[1727283083717,6.8244115,152.03,151.99,6.5793]
[1727283083934,6.578,152.02,151.98,6.5794]
[1727283084129,0.2465115,152.03,151.97,16.4502]
[1727283084323,6.8242115,152.03,151.99,6.5793]
[1727283084526,0.2465115,152.03,152.02,6.578]
[1727283085151,0.2465115,152.03,152.02,25.32413006]
[1727283089116,0.426172,152.08,152.02,42.52301406]
[1727283089317,0.426172,152.08,152.06,6.576]
[1727283089931,0.426172,152.08,152.07,6.5759]
[1727283090522,6.5738,152.12,152.08,6.5754]
[1727283090721,0.2475094,152.11,152.08,6.5754]
[1727283090920,0.2475094,152.11,152.08,6.5753]
[1727283093151,0.2475094,152.11,152.07,35.18553006]
[1727283093315,0.2475094,152.11,152.09,6.575]
[1727283095039,0.2475094,152.11,152.08,6.5753]
[1727283095840,0.2475094,152.11,152.07,35.18553006]
[1727283096033,6.8217094,152.11,152.07,23.0152]
[1727283097045,0.2475094,152.11,152.07,23.0152]
[1727283097639,0.2475094,152.11,152.08,6.5753]
[1727283098940,0.2475094,152.11,152.09,23.0119]
[1727283099923,0.2475094,152.11,152.09,16.437]
[1727283102142,0.2475094,152.11,152.06,31.9406]
[1727283102448,6.8218094,152.11,152.07,6.5759]
[1727283103150,0.2475094,152.11,152.07,18.74613006]
[1727283103444,0.2475094,152.11,152.08,6.5754]
[1727283105646,0.6169219,152.11,152.08,6.5754]
[1727283106544,0.6169219,152.11,152.09,6.5747]
[1727283107130,0.6169219,152.11,152.09,6.5749]
[1727283108125,0.6169219,152.11,152.1,6.5746]
[1727283109727,0.6169219,152.11,152.1,13.0638]
[1727283109926,0.2475094,152.15,152.1,13.0638]
[1727283109927,0.2475094,152.15,152.14,6.5728]
[1727283110239,0.2475094,152.15,152.14,25.31893006]
[1727283111351,0.2475094,152.15,152.14,49.09581406]
[1727283112423,0.2475094,152.15,152.14,69.09581406]
[1727283113144,0.2475094,152.15,152.14,45.31893006]
[1727283115465,0.2475094,152.15,152.14,25.31893006]
[1727283115643,0.2475094,152.15,152.14,6.5728]
[1727283116044,0.2475094,152.15,152.14,25.31893006]
[1727283119162,0.1796605,152.17,152.16,6.572]
[1727283119464,0.1796605,152.17,152.16,25.31813006]
[1727283120864,0.2475094,152.2,152.19,6.5707]
[1727283121059,0.2475094,152.2,152.19,25.31683006]
[1727283122448,0.2475094,152.2,152.17,6.5714]
[1727283122638,0.2475094,152.2,152.12,21.5051]
[1727283122842,0.2475094,152.2,152.14,6.5725]
[1727283123244,0.2475094,152.2,152.13,18.74613006]
[1727283123550,6.8179094,152.2,152.15,6.572]
[1727283123767,6.8179094,152.2,152.14,16.4315]
[1727283123768,6.8179094,152.2,152.16,6.5718]
[1727283124549,0.2475094,152.2,152.11,32.8707]
[1727283124749,0.2475094,152.2,152.17,6.5714]
[1727283124955,0.2475094,152.2,152.18,6.571]
[1727283125163,0.2475094,152.2,152.17,18.74613006]
[1727283125349,0.2475094,152.2,152.19,6.5707]
[1727283126246,0.2475094,152.2,152.19,25.31683006]
[1727283126668,0.2475094,152.2,152.19,69.09371406]
[1727283127676,0.2475094,152.2,152.19,25.31683006]
[1727283128374,0.2475094,152.2,152.19,49.09371406]
[1727283130205,0.2475094,152.2,152.19,25.31683006]
[1727283131043,0.2475094,152.2,152.18,22.9984]
[1727283132067,0.2475094,152.2,152.18,16.4276]
[1727283132788,0.2475094,152.2,152.18,22.9986]
[1727283134486,0.2475094,152.2,152.19,6.5707]
[1727283135880,0.2475094,152.2,152.19,30.347584]
[1727283136190,0.2475094,152.2,152.19,6.5707]
[1727283137364,0.2475094,152.2,152.18,16.4276]
[1727283137972,0.2475094,152.2,152.15,16.4305]
[1727283138173,6.5711,152.19,152.15,23.0026]
[1727283138384,0.2475094,152.2,152.13,6.5731]
[1727283138587,0.2475094,152.2,152.12,50.66983006]
[1727283138588,6.5714,152.18,152.12,50.66983006]
[1727283138781,6.8180094,152.2,152.15,6.5721]
[1727283139485,0.2475094,152.2,152.16,6.5719]
[1727283140401,6.8178094,152.2,152.16,6.5719]
[1727283140893,6.8178094,152.2,152.14,35.17783006]
[1727283141100,6.8178094,152.2,152.15,6.5723]
[1727283141592,0.2475094,152.2,152.12,34.23623006]
[1727283141791,6.5708,152.19,152.13,16.4327]